fUST/lending_fUST_20240823
["ID","MTS","AMOUNT","RATE_DAILY","PERIOD"]
[335649738,1724399438867,-559.36535366,0.00016437,2]
[335649739,1724399438879,-559.36535366,0.00016437,2]
[335649740,1724399438888,-559.36535366,0.00016437,2]
[335649741,1724399438899,-559.36535366,0.00016437,2]
[335649742,1724399438908,-559.36535366,0.00016437,2]
[335649743,1724399438918,-559.36535366,0.00016437,2]
[335649744,1724399438927,-559.36535367,0.00016437,2]
[335649745,1724399438937,-559.36535367,0.00016437,2]
[335649746,1724399438947,-559.36535367,0.00016437,2]
[335649747,1724399438957,-500.0,0.00016438,2]
[335649748,1724399438967,-230.13462078,0.00016438,2]
[335649749,1724399438978,-500.0,0.00016438,2]
[335649750,1724399438988,-500.0,0.00016438,2]
[335649751,1724399438999,-516.60999901,0.00016438,2]
[335649752,1724399439009,-500.0,0.00016438,2]
[335649753,1724399439019,-575.52,0.00016438,2]
[335649754,1724399439029,-500.0,0.00016438,2]
[335649755,1724399439039,-500.0,0.00016438,2]
[335649756,1724399439048,-500.0,0.00016438,2]
[335649757,1724399439058,-500.0,0.00016438,2]
[335649758,1724399439067,-853.07,0.00016438,2]
[335649759,1724399439076,-500.0,0.00016438,2]
[335649760,1724399439086,-500.0,0.00016438,2]
[335649761,1724399439096,-500.0,0.00016438,2]
[335649762,1724399439105,-500.0,0.00016438,2]
[335649763,1724399439115,-500.0,0.00016438,2]
[335649764,1724399439125,-500.0,0.00016438,2]
[335649765,1724399439135,-500.0,0.00016438,2]
[335649766,1724399439145,-500.0,0.00016438,2]
[335649767,1724399439155,-500.0,0.00016438,2]
[335649768,1724399439165,-608.85,0.00016438,2]
[335649769,1724399439174,-500.0,0.00016438,2]
[335649770,1724399439184,-500.0,0.00016438,2]
[335649771,1724399439193,-500.0,0.00016438,2]
[335649772,1724399439202,-500.0,0.00016438,2]
[335649773,1724399439212,-500.0,0.00016438,2]
[335649774,1724399439221,-500.0,0.00016438,2]
[335649775,1724399439231,-500.0,0.00016438,2]
[335649776,1724399439241,-500.0,0.00016438,2]
[335649777,1724399439258,-500.0,0.00016438,2]
[335649778,1724399439268,-500.0,0.00016438,2]
[335649779,1724399439278,-500.0,0.00016438,2]
[335649780,1724399439288,-500.0,0.00016438,2]
[335649781,1724399439299,-500.0,0.00016438,2]
[335649782,1724399439309,-500.0,0.00016438,2]
[335649783,1724399439318,-500.0,0.00016438,2]
[335649784,1724399439328,-500.0,0.00016438,2]
[335649785,1724399439338,-500.0,0.00016438,2]
[335649786,1724399439347,-500.0,0.00016438,2]
[335649787,1724399439357,-500.0,0.00016438,2]
[335649788,1724399439366,-500.0,0.00016438,2]
[335649789,1724399439376,-500.0,0.00016438,2]
[335649790,1724399439386,-500.0,0.00016438,2]
[335649791,1724399439399,-500.0,0.00016438,2]
[335649792,1724399439411,-500.0,0.00016438,2]
[335649793,1724399439421,-338.24,0.00016438,2]
[335649794,1724399439432,-529.51661079,0.00016438,2]
[335649795,1724399439443,-528.33274522,0.00016438,2]
[335649796,1724399439455,-500.0,0.00016438,2]
[335649797,1724399439465,-2220.39,0.00016438,2]
[335649798,1724399439477,-500.0,0.00016438,2]
[335649799,1724399439488,-500.0,0.00016438,2]
[335649800,1724399439499,-500.0,0.00016438,2]
[335649801,1724399439510,-500.0,0.00016438,2]
[335649802,1724399439524,-500.0,0.00016438,2]
[335649803,1724399439534,-500.0,0.00016438,2]
[335649804,1724399439545,-500.0,0.00016438,2]
[335649805,1724399439555,-500.0,0.00016438,2]
[335649806,1724399439564,-500.24498535,0.00016438,2]
[335649807,1724399439573,-500.0,0.00016438,2]
[335649808,1724399439583,-500.0,0.00016438,2]
[335649809,1724399439593,-509.94236622,0.00016438,2]
[335649810,1724399439602,-500.0,0.00016438,2]
[335649811,1724399439611,-1439.39,0.00016438,2]
[335649812,1724399439622,-773.4,0.00016438,2]
[335649813,1724399439631,-500.0,0.00016438,2]
[335649814,1724399439642,-503.40141786,0.00016438,2]
[335649815,1724399439654,-500.0,0.00016438,2]
[335649816,1724399439664,-712.6,0.00016438,2]
[335649817,1724399439674,-500.0,0.00016438,2]
[335649818,1724399439685,-589.8,0.00016438,2]
[335649819,1724399439696,-511.12299825,0.00016438,2]
[335649820,1724399439707,-500.0,0.00016438,2]
[335649821,1724399439717,-500.0,0.00016438,2]
[335649822,1724399439727,-684.32,0.00016438,2]
[335649823,1724399439737,-500.0,0.00016438,2]
[335649824,1724399439746,-672.9,0.00016438,2]
[335649825,1724399439756,-552.48,0.00016438,2]
[335649826,1724399439767,-500.0,0.00016438,2]
[335649827,1724399439779,-500.0,0.00016438,2]
[335649828,1724399439789,-500.0,0.00016438,2]
[335649829,1724399439799,-500.0,0.00016438,2]
[335649830,1724399439808,-500.0,0.00016438,2]
[335649831,1724399439819,-500.0,0.00016438,2]
[335649832,1724399439828,-500.0,0.00016438,2]
[335649833,1724399439838,-500.0,0.00016438,2]
[335649834,1724399439848,-508.49725446,0.00016438,2]
[335649835,1724399439858,-500.0,0.00016438,2]
[335649836,1724399439867,-500.0,0.00016438,2]
[335649837,1724399439877,-500.0,0.00016438,2]
[335649839,1724399439887,-500.0,0.00016438,2]
[335649840,1724399439897,-500.0,0.00016438,2]
[335649841,1724399439906,-500.0,0.00016438,2]
[335649842,1724399439915,-500.0,0.00016438,2]
[335649843,1724399439925,-500.0,0.00016438,2]
[335649844,1724399439936,-500.0,0.00016438,2]
[335649845,1724399439946,-500.0,0.00016438,2]
[335649846,1724399439957,-500.0,0.00016438,2]
[335649847,1724399439968,-500.0,0.00016438,2]
[335649848,1724399439980,-500.0,0.00016438,2]
[335649849,1724399439990,-500.0,0.00016438,2]
[335649850,1724399440000,-500.0,0.00016438,2]
[335649851,1724399440011,-500.0,0.00016438,2]
[335649852,1724399440022,-500.0,0.00016438,2]
[335649853,1724399440032,-500.0,0.00016438,2]
[335649854,1724399440043,-500.0,0.00016438,2]
[335649855,1724399440053,-293.25902441,0.00016438,2]
[335649856,1724399440063,-500.0,0.00016438,2]
[335649857,1724399440073,-500.0,0.00016438,2]
[335649858,1724399440083,-500.0,0.00016438,2]
[335649859,1724399440093,-500.0,0.00016438,2]
[335649861,1724399440103,-500.0,0.00016438,2]
[335649863,1724399440113,-509.00803805,0.00016438,2]
[335649864,1724399440122,-501.3985454,0.00016438,2]
[335649865,1724399440133,-500.0,0.00016438,2]
[335649866,1724399440143,-619.84,0.00016438,2]
[335649868,1724399440153,-500.0,0.00016438,2]
[335649869,1724399440164,-657.34,0.00016438,2]
[335649871,1724399440175,-500.0,0.00016438,2]
[335649872,1724399440185,-500.0,0.00016438,2]
[335649873,1724399440196,-500.0,0.00016438,2]
[335649874,1724399440206,-500.0,0.00016438,2]
[335649875,1724399440216,-500.0,0.00016438,2]
[335649876,1724399440226,-500.0,0.00016438,2]
[335649877,1724399440236,-500.0,0.00016438,2]
[335649878,1724399440247,-1400.63,0.00016438,2]
[335649879,1724399440258,-500.0,0.00016438,2]
[335649880,1724399440269,-500.0,0.00016438,2]
[335649881,1724399440278,-500.0,0.00016438,2]
[335649882,1724399440290,-500.0,0.00016438,2]
[335649883,1724399440300,-500.0,0.00016438,2]
[335649884,1724399440310,-689.11,0.00016438,2]
[335649885,1724399440319,-500.0,0.00016438,2]
[335649886,1724399440330,-500.0,0.00016438,2]
[335649887,1724399440340,-500.0,0.00016438,2]
[335649888,1724399440349,-500.0,0.00016438,2]
[335649889,1724399440360,-500.0,0.00016438,2]
[335649890,1724399440370,-500.0,0.00016438,2]
[335649891,1724399440379,-512.11466666,0.00016438,2]
[335649892,1724399440389,-500.0,0.00016438,2]
[335649893,1724399440399,-500.0,0.00016438,2]
[335649894,1724399440408,-500.0,0.00016438,2]
[335649895,1724399440419,-500.0,0.00016438,2]
[335649896,1724399440429,-500.0,0.00016438,2]
[335649897,1724399440439,-540.54,0.00016438,2]
[335649898,1724399440448,-500.0,0.00016438,2]
[335649899,1724399440458,-500.0,0.00016438,2]
[335649900,1724399440468,-500.0,0.00016438,2]
[335649901,1724399440478,-588.53,0.00016438,2]
[335649902,1724399440488,-542.39,0.00016438,2]
[335649903,1724399440498,-500.0,0.00016438,2]
[335649904,1724399440508,-329.31692437,0.00016438,2]
[335649905,1724399440520,-500.0,0.00016438,2]
[335649906,1724399440530,-781.81,0.00016438,2]
[335649907,1724399440540,-500.0,0.00016438,2]
[335649908,1724399440550,-500.0,0.00016438,2]
[335649909,1724399440561,-500.0,0.00016438,2]
[335649910,1724399440571,-654.56,0.00016438,2]
[335649911,1724399440581,-500.0,0.00016438,2]
[335649912,1724399440590,-500.0,0.00016438,2]
[335649913,1724399440602,-500.0,0.00016438,2]
[335649914,1724399440612,-500.90253299,0.00016438,2]
[335649915,1724399440622,-500.0,0.00016438,2]
[335649916,1724399440633,-500.0,0.00016438,2]
[335649917,1724399440643,-500.0,0.00016438,2]
[335649918,1724399440653,-598.05,0.00016438,2]
[335649919,1724399440663,-500.0,0.00016438,2]
[335649920,1724399440673,-500.0,0.00016438,2]
[335649921,1724399440682,-500.0,0.00016438,2]
[335649922,1724399440692,-500.0,0.00016438,2]
[335649923,1724399440701,-500.0,0.00016438,2]
[335649924,1724399440712,-500.0,0.00016438,2]
[335649925,1724399440721,-500.0,0.00016438,2]
[335649926,1724399440731,-500.0,0.00016438,2]
[335649927,1724399440740,-500.0,0.00016438,2]
[335649928,1724399440750,-1080.4,0.00016438,2]
[335649929,1724399440760,-500.0,0.00016438,2]
[335649930,1724399440770,-809.8,0.00016438,2]
[335649931,1724399440780,-500.0,0.00016438,2]
[335649932,1724399440789,-500.0,0.00016438,2]
[335649933,1724399440799,-500.0,0.00016438,2]
[335649934,1724399440809,-500.0,0.00016438,2]
[335649935,1724399440820,-500.0,0.00016438,2]
[335649936,1724399440830,-500.0,0.00016438,2]
[335649937,1724399440840,-572.41,0.00016438,2]
[335649938,1724399440850,-503.84,0.00016438,2]
[335649939,1724399440861,-500.0,0.00016438,2]
[335649940,1724399440875,-500.0,0.00016438,2]
[335649941,1724399440886,-500.0,0.00016438,2]
[335649942,1724399440896,-500.0,0.00016438,2]
[335649943,1724399440905,-3184.04,0.00016438,2]
[335649944,1724399440915,-2397.3,0.00016438,2]
[335649945,1724399440925,-500.0,0.00016438,2]
[335649946,1724399440935,-500.0,0.00016438,2]
[335649947,1724399440945,-500.0,0.00016438,2]
[335649948,1724399440956,-500.0,0.00016438,2]
[335649949,1724399440966,-500.0,0.00016438,2]
[335649950,1724399440976,-1097.0,0.00016438,2]
[335649951,1724399440986,-500.0,0.00016438,2]
[335649952,1724399441001,-500.0,0.00016438,2]
[335649953,1724399441011,-500.0,0.00016438,2]
[335649954,1724399441021,-500.0,0.00016438,2]
[335649955,1724399441031,-500.0,0.00016438,2]
[335649956,1724399441042,-500.0,0.00016438,2]
[335649957,1724399441052,-179.6,0.00016438,2]
[335649958,1724399441062,-500.0,0.00016438,2]
[335649959,1724399441073,-578.95,0.00016438,2]
[335649960,1724399441084,-500.0,0.00016438,2]
[335649961,1724399441094,-849.15,0.00016438,2]
[335649962,1724399441106,-500.0,0.00016438,2]
[335649963,1724399441117,-500.0,0.00016438,2]
[335649964,1724399441129,-798.21,0.00016438,2]
[335649965,1724399441140,-1690.72,0.00016438,2]
[335649966,1724399441150,-541.91,0.00016438,2]
[335649967,1724399441159,-500.0,0.00016438,2]
[335649968,1724399441171,-1323.63,0.00016438,2]
[335649969,1724399441182,-544.10641392,0.00016438,2]
[335649970,1724399441193,-650.25,0.00016438,2]
[335649971,1724399441204,-500.0,0.00016438,2]
[335649972,1724399441213,-500.0,0.00016438,2]
[335649973,1724399441224,-1062.5,0.00016438,2]
[335649974,1724399441235,-500.0,0.00016438,2]
[335649975,1724399441247,-500.0,0.00016438,2]
[335649976,1724399441257,-542.11,0.00016438,2]
[335649977,1724399441267,-500.0,0.00016438,2]
[335649978,1724399441278,-500.0,0.00016438,2]
[335649979,1724399441288,-500.0,0.00016438,2]
[335649980,1724399441298,-533.04,0.00016438,2]
[335649981,1724399441308,-511.12,0.00016438,2]
[335649982,1724399441318,-500.0,0.00016438,2]
[335649983,1724399441329,-500.0,0.00016438,2]
[335649984,1724399441340,-500.0,0.00016438,2]
[335649985,1724399441350,-671.11,0.00016438,2]
[335649986,1724399441360,-500.0,0.00016438,2]
[335649987,1724399441373,-500.0,0.00016438,2]
[335649988,1724399441383,-500.0,0.00016438,2]
[335649989,1724399441394,-500.0,0.00016438,2]
[335649990,1724399441405,-986.43,0.00016438,2]
[335649991,1724399441415,-500.0,0.00016438,2]
[335649992,1724399441426,-723.25,0.00016438,2]
[335649993,1724399441436,-939.13,0.00016438,2]
[335649994,1724399441447,-1440.38,0.00016438,2]
[335649995,1724399441458,-500.0,0.00016438,2]
[335649996,1724399441468,-500.0,0.00016438,2]
[335649997,1724399441478,-500.0,0.00016438,2]
[335649998,1724399441489,-500.0,0.00016438,2]
[335649999,1724399441501,-500.0,0.00016438,2]
[335650000,1724399441513,-500.0,0.00016438,2]
[335650001,1724399441526,-500.0,0.00016438,2]
[335650002,1724399441536,-500.0,0.00016438,2]
[335650003,1724399441548,-500.0,0.00016438,2]
[335650004,1724399441559,-413.05296044,0.00016438,2]
[335650005,1724399441571,-500.0,0.00016438,2]
[335650006,1724399441582,-733.68,0.00016438,2]
[335650007,1724399441595,-743.06,0.00016438,2]
[335650008,1724399441605,-500.0,0.00016438,2]
[335650009,1724399441615,-500.0,0.00016438,2]
[335650010,1724399441625,-500.0,0.00016438,2]
[335650011,1724399441635,-500.0,0.00016438,2]
[335650012,1724399441646,-500.0,0.00016438,2]
[335650013,1724399441655,-500.0,0.00016438,2]
[335650014,1724399441665,-739.24,0.00016438,2]
[335650015,1724399441676,-500.0,0.00016438,2]
[335650016,1724399441688,-581.14,0.00016438,2]
[335650017,1724399441698,-500.0,0.00016438,2]
[335650018,1724399441711,-915.87,0.00016438,2]
[335650019,1724399441722,-500.0,0.00016438,2]
[335650020,1724399441732,-911.17,0.00016438,2]
[335650021,1724399441742,-315.91567911,0.00016438,2]
[335650022,1724399441752,-500.0,0.00016438,2]
[335650023,1724399441762,-500.0,0.00016438,2]
[335650024,1724399441772,-500.0,0.00016438,2]
[335650025,1724399441783,-500.0,0.00016438,2]
[335650026,1724399441793,-556.88,0.00016438,2]
[335650027,1724399441804,-500.0,0.00016438,2]
[335650028,1724399441814,-500.0,0.00016438,2]
[335650029,1724399441824,-500.0,0.00016438,2]
[335650030,1724399441834,-810.54,0.00016438,2]
[335650031,1724399441845,-500.0,0.00016438,2]
[335650032,1724399441855,-551.36,0.00016438,2]
[335650033,1724399441866,-2154.83,0.00016438,2]
[335650034,1724399441878,-500.0,0.00016438,2]
[335650035,1724399441888,-3203.3,0.00016438,2]
[335650036,1724399441899,-525.95013454,0.00016438,2]
[335650037,1724399441909,-500.0,0.00016438,2]
[335650038,1724399441919,-500.0,0.00016438,2]
[335650039,1724399441930,-617.75,0.00016438,2]
[335650040,1724399441940,-508.61469337,0.00016438,2]
[335650041,1724399441951,-431.8913985,0.00016438,2]
[335650042,1724399441961,-605.76,0.00016438,2]
[335650043,1724399441971,-500.0,0.00016438,2]
[335650044,1724399441982,-656.65,0.00016438,2]
[335650045,1724399441993,-930.38,0.00016438,2]
[335650046,1724399442003,-500.0,0.00016438,2]
[335650047,1724399442013,-286.55664773,0.00016438,2]
[335650048,1724399442023,-864.33,0.00016438,2]
[335650049,1724399442034,-500.0,0.00016438,2]
[335650050,1724399442046,-500.0,0.00016438,2]
[335650051,1724399442056,-500.0,0.00016438,2]
[335650052,1724399442069,-500.0,0.00016438,2]
[335650053,1724399442081,-500.0,0.00016438,2]
[335650054,1724399442091,-415.78811435,0.00016438,2]
[335650055,1724399442102,-1319.69,0.00016438,2]
[335650056,1724399442112,-500.0,0.00016438,2]
[335650057,1724399442122,-500.0,0.00016438,2]
[335650058,1724399442133,-1315.46,0.00016438,2]
[335650059,1724399442143,-990.45,0.00016438,2]
[335650060,1724399442153,-500.0,0.00016438,2]
[335650061,1724399442163,-500.0,0.00016438,2]
[335650062,1724399442173,-500.0,0.00016438,2]
[335650063,1724399442184,-1100.58,0.00016438,2]
[335650064,1724399442194,-500.0,0.00016438,2]
[335650065,1724399442205,-500.0,0.00016438,2]
[335650066,1724399442216,-1125.56,0.00016438,2]
[335650067,1724399442228,-500.0,0.00016438,2]
[335650068,1724399442240,-762.08,0.00016438,2]
[335650069,1724399442251,-500.0,0.00016438,2]
[335650070,1724399442261,-500.0,0.00016438,2]
[335650071,1724399442273,-500.0,0.00016438,2]
[335650072,1724399442284,-500.0,0.00016438,2]
[335650073,1724399442296,-500.0,0.00016438,2]
[335650074,1724399442308,-1213.92,0.00016438,2]
[335650075,1724399442319,-500.0,0.00016438,2]
[335650076,1724399442330,-317.68978065,0.00016438,2]
[335650077,1724399442341,-500.0,0.00016438,2]
[335650078,1724399442352,-508.1556924,0.00016438,2]
[335650079,1724399442362,-500.0,0.00016438,2]
[335650080,1724399442374,-500.0,0.00016438,2]
[335650081,1724399442384,-804.84,0.00016438,2]
[335650082,1724399442394,-847.55,0.00016438,2]
[335650083,1724399442405,-500.0,0.00016438,2]
[335650084,1724399442417,-542.41031267,0.00016438,2]
[335650085,1724399442428,-500.0,0.00016438,2]
[335650086,1724399442439,-1439.76,0.00016438,2]
[335650087,1724399442450,-511.8373745,0.00016438,2]
[335650088,1724399442460,-500.0,0.00016438,2]
[335650089,1724399442471,-500.0,0.00016438,2]
[335650090,1724399442481,-500.0,0.00016438,2]
[335650091,1724399442491,-500.0,0.00016438,2]
[335650092,1724399442502,-500.0,0.00016438,2]
[335650093,1724399442514,-500.0,0.00016438,2]
[335650094,1724399442527,-744.84,0.00016438,2]
[335650095,1724399442539,-500.0,0.00016438,2]
[335650096,1724399442550,-500.0,0.00016438,2]
[335650097,1724399442562,-500.0,0.00016438,2]
[335650098,1724399442573,-649.08,0.00016438,2]
[335650099,1724399442584,-500.0,0.00016438,2]
[335650100,1724399442595,-500.0,0.00016438,2]
[335650101,1724399442605,-805.96,0.00016438,2]
[335650102,1724399442615,-500.0,0.00016438,2]
[335650103,1724399442625,-731.99,0.00016438,2]
[335650104,1724399442635,-507.52524583,0.00016438,2]
[335650105,1724399442646,-500.0,0.00016438,2]
[335650106,1724399442656,-500.0,0.00016438,2]
[335650107,1724399442668,-500.0,0.00016438,2]
[335650108,1724399442679,-584.38,0.00016438,2]
[335650109,1724399442689,-500.0,0.00016438,2]
[335650110,1724399442700,-500.0,0.00016438,2]
[335650111,1724399442710,-500.0,0.00016438,2]
[335650112,1724399442720,-500.0,0.00016438,2]
[335650113,1724399442730,-500.0,0.00016438,2]
[335650114,1724399442740,-500.0,0.00016438,2]
[335650115,1724399442750,-500.0,0.00016438,2]
[335650116,1724399442761,-500.0,0.00016438,2]
[335650117,1724399442771,-500.0,0.00016438,2]
[335650118,1724399442781,-500.0,0.00016438,2]
[335650119,1724399442792,-863.94,0.00016438,2]
[335650133,1724399442802,-500.0,0.00016438,2]
[335650136,1724399443020,-500.0,0.00016438,2]
[335650138,1724399443030,-500.0,0.00016438,2]
[335650140,1724399443040,-500.0,0.00016438,2]
[335650143,1724399443050,-500.0,0.00016438,2]
[335650145,1724399443059,-1225.91,0.00016438,2]
[335650147,1724399443069,-500.0,0.00016438,2]
[335650149,1724399443079,-500.0,0.00016438,2]
[335650151,1724399443089,-636.5,0.00016438,2]
[335650155,1724399443098,-1071.04,0.00016438,2]
[335650157,1724399443107,-500.0,0.00016438,2]
[335650159,1724399443117,-715.6,0.00016438,2]
[335650161,1724399443126,-509.13193573,0.00016438,2]
[335650163,1724399443136,-634.51,0.00016438,2]
[335650165,1724399443145,-500.0,0.00016438,2]
[335650167,1724399443154,-518.2226124,0.00016438,2]
[335650169,1724399443163,-500.0,0.00016438,2]
[335650171,1724399443173,-500.0,0.00016438,2]
[335650173,1724399443183,-500.0,0.00016438,2]
[335650175,1724399443192,-576.53950138,0.00016438,2]
[335650177,1724399443201,-500.0,0.00016438,2]
[335650179,1724399443210,-500.0,0.00016438,2]
[335650181,1724399443219,-500.0,0.00016438,2]
[335650183,1724399443230,-500.0,0.00016438,2]
[335650184,1724399443239,-500.0,0.00016438,2]
[335650185,1724399443250,-935.7,0.00016438,2]
[335650186,1724399443260,-500.0,0.00016438,2]
[335650187,1724399443269,-858.67,0.00016438,2]
[335650188,1724399443279,-500.0,0.00016438,2]
[335650189,1724399443290,-500.0,0.00016438,2]
[335650190,1724399443299,-500.0,0.00016438,2]
[335650191,1724399443309,-804.36,0.00016438,2]
[335650192,1724399443318,-696.77,0.00016438,2]
[335650193,1724399443327,-500.0,0.00016438,2]
[335650194,1724399443338,-500.0,0.00016438,2]
[335650195,1724399443348,-500.0,0.00016438,2]
[335650196,1724399443357,-500.0,0.00016438,2]
[335650197,1724399443367,-826.65,0.00016438,2]
[335650198,1724399443377,-500.0,0.00016438,2]
[335650199,1724399443387,-500.0,0.00016438,2]
[335650200,1724399443397,-500.0,0.00016438,2]
[335650201,1724399443407,-500.0,0.00016438,2]
[335650202,1724399443416,-500.0,0.00016438,2]
[335650203,1724399443426,-500.0,0.00016438,2]
[335650204,1724399443435,-500.0,0.00016438,2]
[335650205,1724399443444,-457.26,0.00016438,2]
[335650206,1724399443455,-500.0,0.00016438,2]
[335650207,1724399443464,-500.0,0.00016438,2]
[335650208,1724399443474,-735.63,0.00016438,2]
[335650209,1724399443483,-500.0,0.00016438,2]
[335650210,1724399443494,-500.0,0.00016438,2]
[335650211,1724399443504,-500.0,0.00016438,2]
[335650212,1724399443514,-506.76,0.00016438,2]
[335650213,1724399443527,-513.33813289,0.00016438,2]
[335650214,1724399443537,-500.0,0.00016438,2]
[335650215,1724399443546,-855.81,0.00016438,2]
[335650216,1724399443556,-500.0,0.00016438,2]
[335650217,1724399443566,-537.7,0.00016438,2]
[335650218,1724399443577,-500.0,0.00016438,2]
[335650219,1724399443586,-500.0,0.00016438,2]
[335650220,1724399443596,-500.0,0.00016438,2]
[335650221,1724399443607,-1180.21,0.00016438,2]
[335650222,1724399443618,-430.23889698,0.00016438,2]
[335650223,1724399443631,-500.0,0.00016438,2]
[335650224,1724399443641,-500.0,0.00016438,2]
[335650225,1724399443652,-1022.86,0.00016438,2]
[335650226,1724399443663,-689.22,0.00016438,2]
[335650227,1724399443672,-500.0,0.00016438,2]
[335650228,1724399443682,-500.0,0.00016438,2]
[335650229,1724399443692,-500.0,0.00016438,2]
[335650230,1724399443702,-653.76,0.00016438,2]
[335650231,1724399443713,-566.31,0.00016438,2]
[335650232,1724399443723,-500.0,0.00016438,2]
[335650233,1724399443735,-500.0,0.00016438,2]
[335650234,1724399443745,-500.0,0.00016438,2]
[335650235,1724399443756,-816.01,0.00016438,2]
[335650236,1724399443765,-604.81,0.00016438,2]
[335650237,1724399443775,-500.0,0.00016438,2]
[335650238,1724399443784,-500.0,0.00016438,2]
[335650239,1724399443794,-500.0,0.00016438,2]
[335650240,1724399443804,-618.47,0.00016438,2]
[335650241,1724399443814,-500.0,0.00016438,2]
[335650242,1724399443824,-1018.07,0.00016438,2]
[335650243,1724399443833,-500.0,0.00016438,2]
[335650244,1724399443843,-500.0,0.00016438,2]
[335650245,1724399443853,-500.0,0.00016438,2]
[335650246,1724399443862,-500.0,0.00016438,2]
[335650247,1724399443872,-546.87460902,0.00016438,2]
[335650248,1724399443883,-892.44,0.00016438,2]
[335650249,1724399443895,-608.93,0.00016438,2]
[335650250,1724399443904,-500.0,0.00016438,2]
[335650251,1724399443914,-647.9,0.00016438,2]
[335650252,1724399443924,-803.11,0.00016438,2]
[335650253,1724399443933,-500.0,0.00016438,2]
[335650254,1724399443944,-500.0,0.00016438,2]
[335650255,1724399443954,-500.0,0.00016438,2]
[335650256,1724399443965,-500.0,0.00016438,2]
[335650257,1724399443976,-1239.5,0.00016438,2]
[335650258,1724399443986,-500.0,0.00016438,2]
[335650259,1724399443997,-500.0,0.00016438,2]
[335650260,1724399444009,-1000.0,0.00016438,2]
[335650261,1724399444020,-500.0,0.00016438,2]
[335650262,1724399444029,-1031.53,0.00016438,2]
[335650263,1724399444039,-500.0,0.00016438,2]
[335650264,1724399444048,-500.0,0.00016438,2]
[335650265,1724399444058,-539.29807881,0.00016438,2]
[335650266,1724399444067,-816.33,0.00016438,2]
[335650267,1724399444076,-500.0,0.00016438,2]
[335650268,1724399444085,-512.23,0.00016438,2]
[335650269,1724399444095,-500.0,0.00016438,2]
[335650270,1724399444106,-500.0,0.00016438,2]
[335650271,1724399444115,-583.1,0.00016438,2]
[335650272,1724399444124,-500.0,0.00016438,2]
[335650273,1724399444134,-500.0,0.00016438,2]
[335650274,1724399444143,-500.0,0.00016438,2]
[335650275,1724399444155,-1942.83,0.00016438,2]
[335650276,1724399444164,-971.54,0.00016438,2]
[335650277,1724399444173,-553.31,0.00016438,2]
[335650278,1724399444182,-500.0,0.00016438,2]
[335650279,1724399444194,-717.14,0.00016438,2]
[335650280,1724399444203,-533.94,0.00016438,2]
[335650281,1724399444215,-717.14,0.00016438,2]
[335650282,1724399444226,-500.73801096,0.00016438,2]